bitfinex-derivatives/quotes_BTCF0:USTF0_20220103
["timestamp","ask_amount","ask_price","bid_price","bid_amount"]
[1641174892343,0.0001,47080.0,47079.0,0.18]
[1641174892543,0.0001,47080.0,47079.0,1.295]
[1641174892742,0.0001,47090.0,47079.0,1.31623808]
[1641174892942,0.0001,47090.0,47079.0,0.52736408]
[1641174893143,0.0001,47090.0,47079.0,0.03103208]
[1641174893343,0.18,47088.0,47079.0,0.02123808]
[1641174893542,0.25169,47088.0,47075.0,0.03103543]
[1641174893942,0.25169,47088.0,47085.0,0.14033567]
[1641174894543,0.25169,47088.0,47085.0,0.27733567]
[1641174895746,0.25169,47088.0,47085.0,0.14033567]
[1641174895944,0.09044702,47087.0,47085.0,0.14033567]
[1641174896546,0.09044702,47087.0,47085.0,0.29433567]
[1641174897548,0.18,47086.0,47085.0,0.29433567]
[1641174898349,0.09044702,47087.0,47085.0,0.154]
[1641174898549,0.27044702,47086.0,47085.0,0.172]
[1641174899849,0.27044702,47086.0,47080.0,0.14033567]
[1641174900050,0.18,47082.0,47080.0,0.14033567]
[1641174900451,0.18,47082.0,47080.0,0.25433567]
[1641174901851,0.18,47082.0,47080.0,0.14033567]
[1641174902252,0.36097674,47081.0,47080.0,0.14033567]
[1641174902451,0.36097674,47081.0,47080.0,0.32633567]
[1641174902851,0.54097674,47082.0,47080.0,0.32633567]
[1641174903754,0.54097674,47082.0,47080.0,0.14033567]
[1641174904153,0.09044766,47081.0,47080.0,0.14033567]
[1641174904554,0.09044766,47081.0,47080.0,0.32733567]
[1641174905859,0.09044766,47081.0,47080.0,0.14033567]
[1641174906058,0.09044766,47086.0,47080.0,0.14033567]
[1641174906461,0.09044766,47086.0,47080.0,0.32733567]
[1641174907160,0.09044766,47086.0,47080.0,0.68649235]
[1641174907559,0.09044766,47086.0,47080.0,0.70773164]
[1641174907762,1.44711883,47084.0,47082.0,0.35915668]
[1641174908558,1.44711883,47084.0,47082.0,0.54915668]
[1641174908964,1.44711883,47085.0,47083.0,0.38039418]
[1641174909762,1.44711883,47087.0,47084.0,0.35915668]
[1641174910161,1.44711883,47087.0,47085.0,0.14033567]
[1641174910761,1.44711883,47087.0,47085.0,0.20791567]
[1641174910962,1.44711883,47087.0,47085.0,0.56707235]
[1641174911861,1.44711883,47087.0,47085.0,0.20791567]
[1641174912062,0.09044766,47089.0,47085.0,0.20791567]
[1641174912261,0.09044766,47089.0,47086.0,0.60264842]
[1641174912863,0.09044766,47089.0,47088.0,0.35929346]
[1641174913663,0.09044766,47089.0,47087.0,0.60264842]
[1641174913865,0.09054766,47090.0,47087.0,0.60264842]
[1641174914465,0.09054766,47090.0,47089.0,0.35928344]
[1641174915867,0.09054766,47090.0,47088.0,0.60264842]
[1641174916467,0.0001,47090.0,47088.0,0.60264842]
[1641174916669,0.0001,47090.0,47088.0,0.79164842]
[1641174918068,0.0001,47090.0,47088.0,0.60264842]
[1641174918468,0.0001,47090.0,47088.0,0.79364842]
[1641174918669,0.0001,47090.0,47089.0,0.35919338]
[1641174919071,0.42457611,47106.0,47090.0,1.124794]
[1641174919370,0.87152869,47107.0,47105.0,0.02122791]
[1641174919569,0.87152869,47107.0,47106.0,0.189794]
[1641174919772,0.87152869,47107.0,47106.0,1.305737]
[1641174919969,0.87152869,47107.0,47106.0,1.14696207]
[1641174920170,0.87152869,47107.0,47106.0,1.28729774]
[1641174920571,0.87152869,47107.0,47106.0,1.90286336]
[1641174921469,1.9703,47117.0,47106.0,2.70286336]
[1641174921470,2.6498616,47117.0,47106.0,2.70286336]
[1641174921671,0.6795616,47117.0,47111.0,0.18]
[1641174921870,0.6795616,47117.0,47112.0,0.189794]
[1641174922071,0.001,47113.0,47112.0,0.329038]
[1641174922472,0.001,47113.0,47112.0,0.519038]
[1641174922672,0.0001,47120.0,47112.0,0.519038]
[1641174922874,0.0001,47120.0,47113.0,1.115]
[1641174923073,0.001,47115.0,47113.0,1.115]
[1641174923273,0.0001,47120.0,47113.0,1.115]
[1641174923274,0.001,47114.0,47113.0,1.115]
[1641174923675,0.0001,47120.0,47113.0,1.42932]
[1641174924273,0.0001,47120.0,47119.0,0.14033567]
[1641174924676,0.0001,47120.0,47119.0,0.15012967]
[1641174926578,0.0001,47120.0,47119.0,0.34212967]
[1641174927778,0.0001,47120.0,47119.0,0.15012967]
[1641174928480,0.0001,47120.0,47119.0,0.34112967]
[1641174929982,0.06336,47120.0,47119.0,0.15012967]
[1641174930484,0.06336,47120.0,47119.0,0.34112967]
[1641174931785,0.06336,47120.0,47119.0,0.15012967]
[1641174932586,0.06336,47120.0,47119.0,0.34312967]
[1641174933985,0.0001,47120.0,47119.0,1.58139867]
[1641174934284,0.0001,47120.0,47119.0,1.66199193]
[1641174934485,0.0001,47130.0,47119.0,1.97648687]
[1641174934884,0.0001,47130.0,47125.0,0.38898503]
[1641174935087,0.0001,47130.0,47126.0,0.009794]
[1641174935284,0.0001,47130.0,47127.0,1.115]
[1641174935685,0.0001,47130.0,47128.0,0.000449]
[1641174936087,0.0001,47130.0,47128.0,1.115]
[1641174936286,0.0001,47130.0,47129.0,0.28067134]
[1641174936499,0.0001,47130.0,47129.0,0.59826134]
[1641174936703,0.0001,47130.0,47129.0,0.28067134]
[1641174937101,0.18,47135.0,47129.0,0.28067134]
[1641174937301,0.18,47131.0,47129.0,0.28067134]
[1641174937501,0.18,47130.0,47129.0,0.28067134]
[1641174938403,0.08464,47131.0,47129.0,0.28067134]
[1641174938606,0.08464,47131.0,47129.0,0.47167134]
[1641174939003,0.18,47130.0,47129.0,0.47167134]
[1641174939404,0.08464,47131.0,47129.0,0.47167134]
[1641174939803,0.08464,47131.0,47129.0,0.28067134]
[1641174940406,0.18,47138.0,47129.0,0.28067134]
[1641174940605,0.18,47134.0,47129.0,0.47067134]
[1641174940805,0.18,47138.0,47129.0,0.47067134]
[1641174941204,0.02122046,47139.0,47129.0,0.47067134]
[1641174941606,0.0001,47140.0,47129.0,0.47067134]
[1641174941904,0.18,47138.0,47129.0,0.28067134]
[1641174942305,1.44587257,47130.0,47129.0,0.28067134]
[1641174942506,1.44587257,47130.0,47129.0,0.45267134]
[1641174943508,1.44587257,47132.0,47129.0,0.8077112]
[1641174944008,1.44587257,47132.0,47129.0,1.7507112]
[1641174944408,1.44587257,47132.0,47130.0,0.319506]
[1641174944809,1.44587257,47133.0,47130.0,0.319506]
[1641174945009,1.44587257,47133.0,47129.0,0.8207112]
[1641174945810,0.0001,47140.0,47131.0,0.35503986]
[1641174945811,1.44587257,47134.0,47131.0,0.35503986]
[1641174946512,1.44587257,47134.0,47131.0,0.19]
[1641174948012,1.44587257,47134.0,47130.0,0.35503986]
[1641174948511,1.44587257,47135.0,47131.0,0.35503986]
[1641174948713,1.44587257,47135.0,47131.0,0.36483386]
[1641174949316,1.44587257,47134.0,47131.0,0.36483386]
[1641174950413,1.44587257,47134.0,47131.0,0.009794]
[1641174950616,1.44587257,47134.0,47131.0,1.33801014]
[1641174950819,1.44587257,47134.0,47132.0,0.317543]
[1641174951214,0.0001,47140.0,47132.0,0.317543]
[1641174951215,1.44587257,47135.0,47132.0,0.317543]
[1641174952219,1.44587257,47135.0,47132.0,0.33875845]
[1641174952617,1.44587257,47135.0,47132.0,0.53175845]
[1641174953020,1.44587257,47135.0,47132.0,0.88679831]
[1641174953921,1.44587257,47135.0,47132.0,0.33875845]
[1641174954320,1.44587257,47135.0,47132.0,0.02121545]
[1641174954522,1.44587257,47135.0,47132.0,0.21521545]
[1641174955622,1.62587257,47134.0,47132.0,0.194]
[1641174955822,1.70917257,47134.0,47130.0,0.35503986]
[1641174956222,1.52917257,47134.0,47130.0,0.35503986]
[1641174956424,0.09036053,47133.0,47129.0,0.8717759]
[1641174956625,0.09036053,47133.0,47130.0,0.18]
[1641174957325,1.44586812,47132.0,47130.0,0.18]
[1641174957926,1.44586812,47132.0,47129.0,0.28067134]
[1641174958127,1.44586812,47131.0,47129.0,0.28067134]
[1641174958629,1.44586812,47131.0,47129.0,0.46967134]
[1641174959828,1.44586812,47132.0,47129.0,0.46967134]
[1641174960030,1.44586812,47132.0,47129.0,0.28067134]
[1641174960633,0.09036053,47135.0,47129.0,0.47367134]
[1641174960829,0.36079341,47131.0,47129.0,0.47367134]
[1641174962233,0.36079341,47130.0,47129.0,0.47367134]
[1641174962649,0.36079341,47130.0,47129.0,0.47467134]
[1641174962834,0.43872341,47130.0,47129.0,0.47467134]
[1641174963935,0.43872341,47130.0,47129.0,0.28067134]
[1641174964535,0.36079341,47130.0,47129.0,0.28067134]
[1641174964834,0.36079341,47130.0,47129.0,0.49588801]
[1641174965835,0.18,47139.0,47129.0,0.49588801]
[1641174965836,0.36079341,47132.0,47129.0,0.49588801]
[1641174966036,0.36079341,47132.0,47129.0,0.30188801]
[1641174966635,0.36079341,47132.0,47129.0,0.49688801]
[1641174968036,0.36079341,47132.0,47129.0,0.30188801]
[1641174968638,0.36079341,47132.0,47129.0,0.49688801]
[1641174970041,0.36079341,47132.0,47129.0,0.30188801]
[1641174970252,0.36079341,47131.0,47129.0,0.30188801]
[1641174970650,0.36079341,47131.0,47129.0,0.49588801]
[1641174971956,0.36079341,47131.0,47129.0,0.30188801]
[1641174972555,0.36079341,47131.0,47129.0,0.49688801]
[1641174974058,0.36079341,47131.0,47129.0,0.30188801]
[1641174974660,0.36079341,47131.0,47129.0,0.49688801]
[1641174974961,0.18,47130.0,47129.0,0.195]
[1641174975760,0.18,47130.0,47120.0,0.35503986]
[1641174975961,0.18,47124.0,47120.0,0.35503986]
[1641174976161,0.08599,47124.0,47120.0,0.35503986]
[1641174976562,0.18,47123.0,47120.0,0.35503986]
[1641174976763,0.18,47123.0,47119.0,0.28067134]
[1641174977164,0.44899,47124.0,47119.0,0.28067134]
[1641174977367,0.18,47123.0,47119.0,0.28067134]
[1641174977664,0.26899,47124.0,47119.0,0.28067134]
[1641174978065,0.08599,47124.0,47119.0,0.28067134]
[1641174978265,0.18,47129.0,47119.0,0.28067134]
[1641174978665,0.09037287,47122.0,47119.0,0.28067134]
[1641174978868,0.09037287,47122.0,47120.0,0.59110456]
[1641174979766,0.187,47124.0,47120.0,0.83806202]
[1641174979767,0.09037287,47123.0,47120.0,0.83806202]
[1641174980668,0.27737287,47123.0,47120.0,0.83806202]
[1641174980869,0.27737287,47123.0,47122.0,0.58826627]
[1641174981571,0.27737287,47123.0,47121.0,0.58826627]
[1641174982269,0.34745287,47123.0,47121.0,0.58826627]
[1641174982470,0.34745287,47123.0,47119.0,0.28067134]
[1641174982471,0.93318287,47122.0,47119.0,0.28067134]
[1641174984571,0.84281,47122.0,47119.0,0.28067134]
[1641174984775,1.02581,47122.0,47119.0,0.28067134]
[1641174985574,0.36119435,47120.0,47119.0,0.28067134]
[1641174985975,0.36119435,47120.0,47119.0,0.30189272]
[1641174986778,0.55219435,47120.0,47119.0,0.30189272]
[1641174986978,0.62156435,47120.0,47119.0,0.30189272]
[1641174987378,0.62156435,47120.0,47119.0,0.28067134]
[1641174988179,0.06937,47120.0,47119.0,0.28067134]
[1641174988679,0.25637,47120.0,47119.0,0.28067134]
[1641174989982,0.06937,47120.0,47119.0,0.28067134]
[1641174990781,0.25637,47120.0,47119.0,0.28067134]
[1641174991984,0.06937,47120.0,47119.0,0.28067134]
[1641174992180,0.090379,47120.0,47119.0,0.28067134]
[1641174992380,0.159019,47120.0,47119.0,0.28067134]
[1641174992680,0.347019,47120.0,47119.0,0.28067134]
[1641174995985,0.159019,47120.0,47119.0,0.28067134]
[1641174996683,0.344019,47120.0,47119.0,0.28067134]
[1641174997985,0.159019,47120.0,47119.0,0.28067134]
[1641174998388,0.159019,47120.0,47115.0,0.02122321]
[1641174998788,0.344019,47120.0,47115.0,0.02122321]
[1641174999087,0.25364,47120.0,47119.0,0.14033567]
[1641175000087,0.06864,47120.0,47119.0,0.14033567]
[1641175000287,0.18,47121.0,47119.0,0.14033567]
[1641175000687,0.185,47120.0,47119.0,0.14033567]
[1641175000888,0.24652,47120.0,47119.0,0.14033567]
[1641175001087,0.24652,47120.0,47115.0,0.02122321]
[1641175001690,0.24652,47120.0,47119.0,0.14033567]
[1641175002088,0.06152,47120.0,47119.0,0.14033567]
[1641175002689,0.24652,47120.0,47119.0,0.14033567]
[1641175004004,0.06152,47120.0,47119.0,0.14033567]
[1641175004203,0.59393957,47123.0,47119.0,0.14033567]
[1641175004404,0.41393957,47123.0,47119.0,0.14033567]
[1641175004806,0.188,47123.0,47119.0,0.14033567]
[1641175005706,1.63386812,47123.0,47119.0,0.49353452]
[1641175006403,1.44586812,47123.0,47119.0,0.49353452]
[1641175006604,1.44586812,47123.0,47120.0,0.35319885]
[1641175006804,1.63086812,47123.0,47120.0,0.35319885]
[1641175008007,1.44586812,47123.0,47120.0,0.35319885]
[1641175008907,1.63386812,47123.0,47120.0,0.35319885]
[1641175009708,1.81386812,47123.0,47120.0,0.35319885]
[1641175009911,1.81386812,47123.0,47119.0,0.14033567]
[1641175009912,0.188,47123.0,47119.0,0.14033567]
[1641175010109,1.44586812,47126.0,47119.0,0.14033567]
[1641175010809,1.63386812,47126.0,47119.0,0.14033567]
[1641175011009,0.18,47121.0,47119.0,0.14033567]
[1641175012414,1.44586812,47125.0,47119.0,0.14033567]
[1641175012812,0.185,47121.0,47119.0,0.24833567]
[1641175013214,0.365,47121.0,47119.0,0.24833567]
[1641175013818,0.185,47121.0,47119.0,0.24833567]
[1641175014017,1.44586812,47126.0,47119.0,0.14033567]
[1641175014218,0.18,47121.0,47119.0,0.14033567]
[1641175014618,0.09037928,47120.0,47119.0,0.14033567]
[1641175014818,0.09037928,47120.0,47119.0,0.28033567]
[1641175015719,0.366,47121.0,47119.0,0.28033567]
[1641175016120,0.09037928,47120.0,47119.0,0.14033567]
[1641175016721,0.27437928,47120.0,47119.0,0.30233567]
[1641175018124,0.09037928,47120.0,47119.0,0.14033567]
[1641175018726,0.27737928,47120.0,47119.0,0.28533567]
[1641175022233,0.09037928,47120.0,47119.0,0.14033567]
[1641175022732,0.27737928,47120.0,47119.0,0.28533567]
[1641175024034,0.09037928,47120.0,47119.0,0.14033567]
[1641175024738,0.27637928,47120.0,47119.0,0.29233567]
[1641175026139,0.09037928,47120.0,47119.0,0.14033567]
[1641175026741,0.09037928,47120.0,47119.0,0.62053452]
[1641175026742,0.187,47120.0,47119.0,0.62053452]
[1641175027841,0.187,47120.0,47119.0,0.26733567]
[1641175028044,0.09037928,47120.0,47119.0,0.14033567]
[1641175028644,0.18,47122.0,47119.0,0.14033567]
[1641175028844,0.187,47120.0,47119.0,0.28633567]
[1641175030044,0.09037928,47121.0,47119.0,0.14033567]
[1641175030458,0.18,47122.0,47119.0,0.14033567]
[1641175030459,0.09037928,47120.0,47119.0,0.14033567]
[1641175030760,0.09037928,47120.0,47119.0,0.24833567]
[1641175031357,0.27537928,47121.0,47119.0,0.24833567]
[1641175032258,0.09037928,47120.0,47119.0,0.24833567]
[1641175032657,0.09037928,47120.0,47119.0,0.14033567]
[1641175032857,0.09037928,47120.0,47119.0,0.25033567]
[1641175034057,0.09037928,47120.0,47119.0,0.14033567]
[1641175034757,0.27537928,47120.0,47119.0,0.30633567]
[1641175035158,0.185,47120.0,47119.0,0.30633567]
[1641175036061,0.27537928,47120.0,47119.0,0.30633567]
[1641175036257,0.09037928,47120.0,47119.0,0.14033567]
[1641175036862,0.27337928,47120.0,47119.0,0.30333567]
[1641175038266,0.09037928,47120.0,47119.0,0.14033567]
[1641175038865,0.26437928,47120.0,47119.0,0.29433567]
[1641175039665,0.174,47120.0,47119.0,0.29433567]
[1641175040366,0.09037928,47121.0,47119.0,0.14033567]
[1641175040566,0.09037928,47120.0,47119.0,0.14033567]
[1641175040766,0.25337928,47120.0,47119.0,0.88760194]
[1641175041968,0.25337928,47120.0,47119.0,0.29933567]
[1641175042170,0.25337928,47120.0,47119.0,1.13739769]
[1641175042868,0.26537928,47120.0,47119.0,1.13439769]
[1641175044071,0.26537928,47120.0,47119.0,0.97839769]
[1641175044072,0.09037928,47120.0,47119.0,0.97839769]
[1641175044771,0.175,47120.0,47119.0,1.13139769]
[1641175045673,0.26537928,47120.0,47119.0,1.13139769]
[1641175046072,0.09037928,47120.0,47119.0,0.97839769]
[1641175046973,0.175,47120.0,47119.0,0.29333567]
[1641175048076,0.09037928,47123.0,47119.0,0.14033567]
[1641175048276,0.09037928,47120.0,47119.0,0.72720151]
[1641175048774,0.26537928,47120.0,47119.0,0.87920151]
[1641175049677,0.175,47120.0,47119.0,0.87920151]
[1641175050275,1.5362474,47125.0,47119.0,0.72720151]
[1641175050479,0.09037928,47120.0,47119.0,0.72720151]
[1641175051178,1.44586812,47124.0,47119.0,0.72720151]
[1641175051978,0.09037928,47124.0,47121.0,0.35209293]
[1641175052878,0.26937928,47124.0,47121.0,0.35209293]
[1641175053479,0.179,47124.0,47121.0,0.35209293]
[1641175054083,0.09037928,47123.0,47120.0,0.35209293]
[1641175054781,0.26937928,47123.0,47120.0,0.35209293]
[1641175054979,0.179,47123.0,47120.0,0.35209293]
[1641175055781,0.09037928,47122.0,47120.0,0.35209293]
[1641175056879,0.27037928,47122.0,47120.0,0.35209293]
[1641175057982,0.09037928,47121.0,47120.0,0.35209293]
[1641175058785,0.27137928,47121.0,47120.0,0.35209293]
[1641175059786,0.27137928,47121.0,47119.0,0.14033567]
[1641175060189,0.09037928,47121.0,47119.0,0.14033567]
[1641175060589,0.09037928,47120.0,47119.0,0.4924286]
[1641175061290,0.09037928,47120.0,47119.0,0.14033567]
[1641175061491,0.176,47121.0,47119.0,0.14033567]
[1641175062090,0.09037928,47124.0,47119.0,0.14033567]
[1641175062290,0.09037928,47120.0,47119.0,0.14033567]
[1641175062490,0.09037928,47120.0,47118.0,0.58686584]
[1641175062792,0.26437928,47120.0,47118.0,0.58686584]
[1641175062993,0.26437928,47120.0,47119.0,0.14033567]
[1641175063691,0.174,47120.0,47119.0,0.14033567]
[1641175064196,0.09037928,47124.0,47119.0,0.14033567]
[1641175064592,0.09037928,47120.0,47119.0,0.14033567]
[1641175065295,1.7092474,47124.0,47119.0,0.14033567]
[1641175066094,1.5362474,47124.0,47119.0,0.14033567]
[1641175066295,0.09037928,47123.0,47119.0,0.14033567]
[1641175066794,0.175,47123.0,47119.0,0.14033567]
[1641175067799,0.09037928,47122.0,47119.0,0.14033567]
[1641175068498,0.02123006,47120.0,47106.0,1.42781177]
[1641175068699,0.18,47111.0,47106.0,1.42781177]
[1641175068902,0.26443,47111.0,47106.0,1.42781177]
[1641175069099,0.14033567,47109.0,47106.0,1.42781177]
[1641175069297,0.14133567,47109.0,47106.0,1.42781177]
[1641175069500,0.38586043,47109.0,47105.0,1.42781177]
[1641175069697,0.40709442,47109.0,47105.0,1.42781177]
[1641175070897,0.181,47106.0,47098.0,1.68788794]
[1641175071097,0.18,47108.0,47098.0,0.14033567]
[1641175071709,0.18,47104.0,47098.0,0.14033567]
[1641175072611,0.18,47104.0,47099.0,0.01205336]
[1641175072915,0.35,47104.0,47098.0,0.14033567]
[1641175073511,0.17,47104.0,47098.0,0.14033567]
[1641175073810,0.09037928,47103.0,47098.0,0.14033567]
[1641175074811,0.26137928,47103.0,47098.0,0.14033567]
[1641175076110,0.09037928,47103.0,47098.0,0.14033567]
[1641175076312,0.09037928,47102.0,47098.0,1.3180838]
[1641175076911,0.26237928,47102.0,47099.0,0.01205336]
[1641175077113,0.26237928,47102.0,47098.0,1.3180838]
[1641175077714,0.172,47102.0,47100.0,0.82447883]
[1641175077916,0.001,47101.0,47100.0,0.82447883]
[1641175078916,0.175,47101.0,47100.0,0.82447883]
[1641175079118,0.26537928,47101.0,47100.0,0.82447883]
[1641175080219,0.09137928,47101.0,47100.0,0.82447883]
[1641175080722,0.09137928,47101.0,47098.0,1.3180838]
[1641175080921,0.001,47099.0,47098.0,0.14033567]
[1641175081321,0.001,47099.0,47098.0,0.15238904]
[1641175082421,0.001,47099.0,47098.0,0.14033567]
[1641175082921,0.169,47099.0,47098.0,0.14033567]
[1641175084223,0.001,47099.0,47098.0,0.14033567]
[1641175084823,0.168,47099.0,47098.0,0.14033567]
[1641175086223,0.001,47099.0,47098.0,0.14033567]
[1641175087025,0.167,47099.0,47098.0,0.14033567]
[1641175088228,0.001,47099.0,47098.0,0.14033567]
[1641175089028,0.168,47099.0,47098.0,0.14033567]
[1641175090333,0.001,47099.0,47098.0,0.14033567]
[1641175091034,0.173,47099.0,47098.0,0.14033567]
[1641175092232,0.001,47099.0,47098.0,0.14033567]
[1641175092933,0.137,47099.0,47098.0,0.14033567]
[1641175094334,0.001,47099.0,47098.0,0.14033567]
[1641175094735,0.001,47099.0,47098.0,0.15238893]
[1641175094935,0.147,47099.0,47098.0,0.15238893]
[1641175096338,0.34156966,47109.0,47098.0,0.15238893]
[1641175096937,0.34156966,47109.0,47099.0,0.01205326]
[1641175096938,0.18,47106.0,47099.0,0.01205326]
[1641175097840,0.51056966,47109.0,47099.0,0.01205326]
[1641175098038,0.33056966,47109.0,47099.0,0.01205326]
[1641175098439,0.16156966,47109.0,47099.0,0.01205326]
[1641175098939,0.33056966,47109.0,47099.0,0.01205326]
[1641175100043,0.09040221,47108.0,47107.0,0.35258875]
[1641175100243,0.09140221,47108.0,47107.0,0.35258875]
[1641175100943,0.25940221,47108.0,47107.0,0.35258875]
[1641175102144,0.43940221,47108.0,47107.0,0.35258875]
[1641175102344,0.27140221,47108.0,47107.0,0.35258875]
[1641175102945,0.43940221,47108.0,47107.0,0.35258875]
[1641175104345,0.27140221,47108.0,47107.0,0.35258875]
[1641175104948,0.43940221,47108.0,47107.0,0.35258875]
[1641175105763,0.50602221,47108.0,47107.0,0.35258875]
[1641175106065,0.50602221,47108.0,47106.0,0.35258875]
[1641175106264,0.001,47107.0,47106.0,0.35258875]
[1641175107067,0.26040221,47107.0,47106.0,0.35258875]
[1641175108169,0.26040221,47107.0,47104.0,0.35258875]
[1641175108367,0.18,47105.0,47104.0,0.35258875]
[1641175109069,0.351,47105.0,47104.0,0.35258875]
[1641175110470,0.27040221,47105.0,47104.0,0.35258875]
[1641175111069,0.44140221,47105.0,47104.0,0.35258875]
[1641175112271,0.09040221,47105.0,47104.0,0.35258875]
[1641175113075,0.26140221,47105.0,47104.0,0.35258875]
[1641175113273,0.44140221,47105.0,47104.0,0.35258875]
[1641175113675,0.26140221,47105.0,47104.0,0.35258875]
[1641175114274,0.09040221,47105.0,47104.0,0.58764792]
[1641175114972,0.26140221,47105.0,47104.0,0.58764792]
[1641175115274,0.44140221,47105.0,47103.0,0.58764792]
[1641175116173,0.44140221,47105.0,47102.0,0.82270709]
[1641175116174,0.09040221,47104.0,47102.0,0.82270709]
[1641175116974,0.26140221,47104.0,47102.0,0.82270709]
[1641175117375,0.26140221,47104.0,47101.0,0.82270709]
[1641175117674,0.18,47103.0,47101.0,0.82270709]
[1641175118576,0.09040221,47103.0,47101.0,0.82270709]
[1641175118775,0.09040221,47103.0,47100.0,0.82270709]
[1641175118976,0.18,47102.0,47100.0,0.82270709]
[1641175119575,0.18,47102.0,47099.0,0.82270709]
[1641175120174,0.17,47103.0,47099.0,0.82270709]
[1641175120376,0.02123583,47105.0,47099.0,0.82270709]
[1641175120775,0.09040221,47101.0,47099.0,0.82270709]
[1641175121677,0.09040221,47104.0,47099.0,0.82270709]
[1641175122679,0.09040221,47104.0,47103.0,0.14033567]
[1641175123079,0.26040221,47104.0,47103.0,0.14033567]
[1641175123679,0.44040221,47104.0,47103.0,0.14033567]
[1641175124380,0.27040221,47104.0,47103.0,0.14033567]
[1641175124980,0.44040221,47104.0,47103.0,0.14033567]
[1641175125985,0.26040221,47104.0,47103.0,0.14033567]
[1641175126385,0.09040221,47104.0,47103.0,0.14033567]
[1641175126785,0.27040221,47104.0,47103.0,0.14033567]
[1641175126984,0.44040221,47104.0,47103.0,0.14033567]
[1641175128384,0.27040221,47104.0,47103.0,0.14033567]
[1641175128988,0.44040221,47104.0,47103.0,0.14033567]
[1641175130288,0.09040221,47104.0,47103.0,0.14033567]
[1641175131090,0.26140221,47104.0,47103.0,0.14033567]
[1641175132290,0.09040221,47104.0,47103.0,0.14033567]
[1641175132691,0.09040221,47104.0,47103.0,0.72868848]
[1641175133093,0.22440221,47104.0,47103.0,0.72868848]
[1641175133392,0.22440221,47104.0,47103.0,0.14033567]
[1641175133592,0.134,47104.0,47103.0,0.14033567]
[1641175134393,0.22440221,47104.0,47103.0,0.14033567]
[1641175134995,0.35840221,47104.0,47103.0,0.14033567]
[1641175135595,0.35840221,47104.0,47103.0,1.3150585]
[1641175136497,0.09040221,47104.0,47103.0,0.14033567]
[1641175137096,0.24940221,47104.0,47103.0,0.30133567]
[1641175137700,0.159,47104.0,47103.0,0.30133567]
[1641175138302,0.24940221,47104.0,47103.0,1.4760585]
[1641175138500,0.09040221,47104.0,47103.0,1.3150585]
[1641175139203,0.19840221,47104.0,47103.0,1.4780585]
[1641175140205,0.19840221,47104.0,47103.0,0.30333567]
[1641175140206,1.04212164,47104.0,47103.0,0.30333567]
[1641175140405,0.93412164,47104.0,47103.0,0.14033567]
[1641175141108,0.93412164,47104.0,47103.0,0.31433567]
[1641175142005,0.84371943,47104.0,47103.0,0.31433567]
[1641175142405,0.84371943,47104.0,47103.0,0.14033567]
[1641175142705,0.09040221,47112.0,47103.0,0.14033567]
[1641175143105,0.09040221,47112.0,47103.0,0.31333567]
[1641175143506,1.53627033,47112.0,47108.0,0.35250141]
[1641175143707,0.001,47109.0,47108.0,0.35250141]
[1641175145208,0.26740221,47109.0,47108.0,0.35250141]
[1641175146524,0.09140221,47109.0,47108.0,0.35250141]
[1641175147124,0.25940221,47109.0,47108.0,0.48850141]
[1641175149026,0.26040221,47109.0,47108.0,0.49250141]
[1641175149727,0.26040221,47109.0,47108.0,0.14]
[1641175150426,0.09140221,47109.0,47108.0,0.14]
[1641175150626,0.09140221,47109.0,47107.0,0.58750236]
[1641175150826,0.09040221,47109.0,47107.0,0.58750236]
[1641175151027,0.26540221,47109.0,47107.0,0.58750236]
[1641175151727,0.175,47109.0,47107.0,0.58750236]
[1641175152427,0.09040221,47108.0,47107.0,0.58750236]
[1641175153128,0.26040221,47108.0,47107.0,0.58750236]
[1641175153329,0.44040221,47108.0,47106.0,0.35264854]
[1641175154330,0.09040221,47107.0,47103.0,0.49298421]
[1641175154930,0.09040221,47107.0,47106.0,0.18]
[1641175155131,0.26140221,47107.0,47106.0,0.18]
[1641175155432,0.26140221,47107.0,47106.0,2.75266786]
[1641175156033,0.26140221,47107.0,47106.0,3.34017022]
[1641175156433,0.09040221,47107.0,47106.0,3.34017022]
[1641175157134,0.09040221,47107.0,47106.0,2.75266786]
[1641175158337,0.09040221,47112.0,47106.0,3.57517116]
[1641175159136,0.25940221,47112.0,47109.0,0.35222601]
[1641175159338,0.001,47110.0,47109.0,0.35222601]
[1641175159737,0.001,47110.0,47109.0,0.58704335]
[1641175160738,0.09140221,47110.0,47109.0,0.58704335]
[1641175161138,0.25440221,47110.0,47109.0,0.58704335]
[1641175162442,0.09140221,47110.0,47109.0,0.58704335]
[1641175163140,0.23740221,47110.0,47109.0,0.58704335]
[1641175164341,0.09140221,47110.0,47109.0,0.58704335]
[1641175165143,0.23740221,47110.0,47108.0,0.67979335]
[1641175165343,0.001,47109.0,47108.0,0.67979335]
[1641175165843,0.09140221,47109.0,47108.0,1.50229665]
[1641175166043,0.09140221,47109.0,47108.0,0.9152533]
[1641175167144,0.23540221,47109.0,47108.0,0.9152533]
[1641175167547,0.23540221,47109.0,47108.0,0.09275]
[1641175167746,0.23540221,47109.0,47107.0,0.8225033]
[1641175167946,0.23440221,47109.0,47107.0,0.8225033]
[1641175168445,0.09040221,47109.0,47107.0,0.8225033]
[1641175169248,0.23440221,47109.0,47107.0,0.8225033]
[1641175169847,0.09040221,47108.0,47106.0,0.18]
[1641175170050,0.09040221,47108.0,47106.0,1.35500471]
[1641175171151,0.23140221,47108.0,47106.0,1.35500471]
[1641175171554,0.141,47108.0,47106.0,1.35500471]
[1641175172251,0.09040221,47107.0,47106.0,1.35500471]
[1641175173151,0.23140221,47107.0,47106.0,1.35500471]
[1641175173850,0.141,47107.0,47106.0,1.35500471]
[1641175174351,0.09040221,47111.0,47106.0,1.35500471]
[1641175174555,0.09040221,47107.0,47106.0,1.35500471]
[1641175175253,0.14,47107.0,47106.0,1.35500471]
[1641175175852,0.09040221,47112.0,47106.0,1.36479871]
[1641175176151,0.09040221,47112.0,47111.0,0.20122483]
[1641175176351,1.44586812,47115.0,47111.0,0.20122483]
[1641175176951,1.44586812,47115.0,47114.0,0.18]
[1641175177352,1.44586812,47120.0,47114.0,0.18]
[1641175177551,1.44586812,47120.0,47114.0,1.00133824]
[1641175177751,1.44586812,47120.0,47115.0,0.14033567]
[1641175178553,1.44586812,47122.0,47119.0,0.3519134]
[1641175179151,1.44586812,47122.0,47119.0,0.5249134]
[1641175180053,1.44586812,47121.0,47119.0,0.173]
[1641175180254,1.53945812,47121.0,47119.0,0.173]
[1641175180559,1.53945812,47121.0,47117.0,0.3519134]
[1641175180954,1.44586812,47120.0,47117.0,0.3519134]
[1641175181154,1.44586812,47120.0,47117.0,0.5169134]